fUST/lending_fUST_20251204
["ID","MTS","AMOUNT","RATE_DAILY","PERIOD"]
[396212073,1764810750406,-151.0,0.00021918,2]
[396212074,1764810750429,-151.0,0.00021918,2]
[396212075,1764810750448,-151.0,0.00021918,2]
[396212076,1764810750468,-151.0,0.00021918,2]
[396212077,1764810750487,-151.0,0.00021918,2]
[396212078,1764810750506,-151.0,0.00021918,2]
[396212079,1764810750526,-151.0,0.00021918,2]
[396212080,1764810750546,-151.0,0.00021918,2]
[396212081,1764810750566,-151.0,0.00021918,2]
[396212082,1764810750586,-151.0,0.00021918,2]
[396212083,1764810750605,-151.0,0.00021918,2]
[396212084,1764810750626,-151.0,0.00021918,2]
[396212085,1764810750645,-151.0,0.00021918,2]
[396212086,1764810750665,-151.0,0.00021918,2]
[396212087,1764810750686,-151.0,0.00021918,2]
[396212088,1764810750706,-151.0,0.00021918,2]
[396212089,1764810750726,-151.0,0.00021918,2]
[396212090,1764810750745,-184.0014591,0.00021918,2]
[396212091,1764810750767,-151.0,0.00021918,2]
[396212092,1764810750786,-151.0,0.00021918,2]
[396212093,1764810750805,-151.0,0.00021918,2]
[396212094,1764810750824,-151.0,0.00021918,2]
[396212095,1764810750843,-151.0,0.00021918,2]
[396212096,1764810750862,-151.0,0.00021918,2]
[396212097,1764810750880,-151.0,0.00021918,2]
[396212098,1764810750900,-151.0,0.00021918,2]
[396212099,1764810750919,-151.0,0.00021918,2]
[396212100,1764810750938,-151.0,0.00021918,2]
[396212101,1764810750959,-151.0,0.00021918,2]
[396212102,1764810750981,-151.0,0.00021918,2]
[396212103,1764810751000,-151.0,0.00021918,2]
[396212104,1764810751024,-151.0,0.00021918,2]
[396212105,1764810751043,-151.0,0.00021918,2]
[396212106,1764810751063,-151.0,0.00021918,2]
[396212107,1764810751089,-151.0,0.00021918,2]
[396212108,1764810751111,-151.0,0.00021918,2]
[396212109,1764810751132,-151.0,0.00021918,2]
[396212110,1764810751154,-151.0,0.00021918,2]
[396212111,1764810751176,-151.0,0.00021918,2]
[396212112,1764810751197,-151.0,0.00021918,2]
[396212113,1764810751217,-151.0,0.00021918,2]
[396212114,1764810751237,-151.0,0.00021918,2]
[396212115,1764810751259,-151.0,0.00021918,2]
[396212116,1764810751281,-151.0,0.00021918,2]
[396212117,1764810751302,-151.0,0.00021918,2]
[396212118,1764810751323,-151.0,0.00021918,2]
[396212119,1764810751343,-151.0,0.00021918,2]
[396212120,1764810751364,-151.0,0.00021918,2]
[396212121,1764810751383,-151.0,0.00021918,2]
[396212122,1764810751403,-151.0,0.00021918,2]
[396212123,1764810751423,-151.0,0.00021918,2]
[396212124,1764810751443,-151.0,0.00021918,2]
[396212125,1764810751463,-151.0,0.00021918,2]
[396212126,1764810751483,-151.0,0.00021918,2]
[396212127,1764810751503,-151.0,0.00021918,2]
[396212128,1764810751523,-151.0,0.00021918,2]
[396212129,1764810751544,-151.0,0.00021918,2]
[396212130,1764810751563,-151.0,0.00021918,2]
[396212131,1764810751583,-151.0,0.00021918,2]
[396212132,1764810751602,-151.0,0.00021918,2]
[396212133,1764810751622,-151.0,0.00021918,2]
[396212134,1764810751641,-150.0,0.00021918,2]
[396212135,1764810751661,-151.0,0.00021918,2]
[396212136,1764810751681,-151.0,0.00021918,2]
[396212137,1764810751700,-151.0,0.00021918,2]
[396212138,1764810751720,-151.0,0.00021918,2]
[396212139,1764810751740,-151.0,0.00021918,2]
[396212140,1764810751762,-151.0,0.00021918,2]
[396212141,1764810751782,-151.0,0.00021918,2]
[396212142,1764810751801,-157.79169719,0.00021918,2]
[396212143,1764810751820,-151.0,0.00021918,2]
[396212144,1764810751840,-500.0,0.00021918,2]
[396212145,1764810751859,-500.0,0.00021918,2]
[396212146,1764810751878,-500.0,0.00021918,2]
[396212147,1764810751898,-500.0,0.00021918,2]
[396212148,1764810751918,-500.0,0.00021918,2]
[396212149,1764810751938,-500.0,0.00021918,2]
[396212150,1764810751959,-500.0,0.00021918,2]
[396212151,1764810751980,-500.0,0.00021918,2]
[396212152,1764810752001,-452.58463835,0.00021918,2]
[396212153,1764810752022,-500.0,0.00021918,2]
[396212154,1764810752043,-598107.13,0.00022,2]
[396212155,1764810752063,-300.02566931,0.00022,2]
[396212156,1764810752086,-419.15518582,0.00022,2]
[396212157,1764810752106,-500.0,0.00022004,2]
[396212158,1764810752127,-1560.0,0.00022071,2]
[396212159,1764810752147,-5436.83,0.000221,2]
[396212160,1764810752167,-285.0,0.00022204,2]
[396212161,1764810752188,-200.0,0.00022236,2]
[396212162,1764810752208,-800.0,0.00022302,2]
[396212163,1764810752227,-500.0,0.00022319,2]
[396212164,1764810752247,-800.0,0.00022457,2]
[396212165,1764810752268,-300.0,0.00022466,2]
[396212166,1764810752287,-1028.7103108,0.000225,2]
[396212167,1764810752308,-1660.0,0.00022619,2]
[396212168,1764810752329,-200.0,0.00022784,2]
[396212169,1764810752348,-2000.0,0.000229,2]
[396212170,1764810752368,-2000.0,0.000229,2]
[396212171,1764810752387,-10000.0,0.00023,2]
[396212172,1764810752406,-197.424082,0.00023,2]
[396212173,1764810753453,489.44087694,0.00018001,2]
[396212174,1764810753503,500.0,0.0002001,2]
[396212175,1764810753703,234.72039557,0.00017178,2]
[396212176,1764810753885,14689.09,0.0002115,10]
[396212177,1764810755740,1600.0,0.00021082,7]
[396212178,1764810756055,160.0,0.0002,2]
[396212179,1764810756347,1600.0,0.00022178,7]
[396212180,1764810756407,260.0,0.00020548,2]
[396212181,1764810756747,432.95999955,0.00021096,2]
[396212182,1764810756989,166.67,0.000192,2]
[396212183,1764810757686,507.0,0.00023,7]
[396212184,1764810757869,853.093,0.000192,2]
[396212185,1764810761467,500.0,0.00021999,2]
[396212186,1764810761525,500.0,0.00021999,2]
[396212187,1764810761555,411.12873378,0.00021999,2]
[396212188,1764810762386,1000.0,0.00032876,120]
[396212189,1764810763587,446.95126612,0.00021999,2]
[396212190,1764810763614,550.28718204,0.00021999,2]
[396212191,1764810763641,500.0,0.00021999,2]
[396212192,1764810763669,523.81659857,0.00021999,2]
[396212193,1764810763698,549.75459302,0.00021999,2]
[396212194,1764810763736,296.08630357,0.00021999,2]
[396212195,1764810772522,2000.0,0.000229,2]
[396212196,1764810774326,2000.0,0.000229,2]
[396212197,1764810777352,114272.1818832,0.00013598,2]
[396212199,1764811050463,300.0,0.00016364,120]
[396212200,1764811052191,300.0,0.00016364,120]
[396212201,1764811203092,260.03869439,0.00014,14]
[396212207,1764811804368,250.0,0.0002,30]
[396212208,1764811804864,10544.0,0.00032876,120]
[396212226,1764811831665,-975.72973871,0.00011546,2]
[396212227,1764811831676,-255.49749186,0.00011546,2]
[396212228,1764811831703,-873.85363383,0.00011546,2]
[396212229,1764811831712,-55.40887431,0.00011546,2]
[396212239,1764811833859,1000.0,0.00032,120]
[396212240,1764811834623,1217.0,0.0003287,120]
[396212277,1764811837881,-188.59112569,0.00011546,2]
[396212278,1764811837891,-150.0,0.00011605,2]
[396212279,1764811837900,-1217.1292329,0.00011663,2]
[396212280,1764811837911,-320.80769379,0.00011663,2]
[396212281,1764811837921,-567.14393771,0.00011663,2]
[396212282,1764811837931,-1480.83709493,0.00012346,2]
[396212283,1764811837942,-114.16290507,0.00012346,2]
[396212284,1764811837952,-2572.8496877,0.000125,2]
[396212285,1764811837961,-452.0,0.00012639,2]
[396212286,1764811837970,-1854.0808644,0.0001264,2]
[396212287,1764811837980,-300.0,0.00012892,2]
[396212288,1764811837989,-300.0,0.00012892,2]
[396212289,1764811837998,-300.0,0.00012892,2]
[396212290,1764811838007,-300.0,0.00012892,2]
[396212291,1764811838016,-300.0,0.00012892,2]
[396212292,1764811838026,-196.10919242,0.00012892,2]
[396212442,1764811843662,-103.89080758,0.00012892,2]
[396212443,1764811843671,-300.0,0.00012892,2]
[396212444,1764811843680,-300.0,0.00012892,2]
[396212445,1764811843690,-300.0,0.00012892,2]
[396212446,1764811843701,-300.0,0.00012892,2]
[396212447,1764811843710,-300.0,0.00012892,2]
[396212448,1764811843720,-300.0,0.00012892,2]
[396212449,1764811843730,-300.0,0.00012892,2]
[396212450,1764811843740,-300.0,0.00012892,2]
[396212451,1764811843749,-300.0,0.00012892,2]
[396212452,1764811843758,-600.0,0.00013149,2]
[396212453,1764811843767,-151.0,0.00013589,2]
[396212454,1764811843779,-151.0,0.00013589,2]
[396212455,1764811843788,-151.0,0.00013589,2]
[396212456,1764811843799,-151.0,0.00013589,2]
[396212457,1764811843808,-151.0,0.00013589,2]
[396212458,1764811843819,-151.0,0.00013589,2]
[396212459,1764811843829,-151.0,0.00013589,2]
[396212460,1764811843839,-263.28348411,0.00013589,2]
[396212461,1764811843849,-4618.53874853,0.00013599,2]
[396212462,1764811843859,-177.0,0.00013605,2]
[396212463,1764811843868,-500.0,0.00013698,2]
[396212464,1764811843878,-493.95647251,0.00013698,2]
[396212465,1764811843888,-8726.55104727,0.00013699,2]
[396212466,1764811844342,-25414.4987569,0.00013699,2]
[396212467,1764811844354,-5582.1560482,0.00013699,2]
[396212468,1764811844366,-17986.45151146,0.00013699,2]
[396212469,1764811844377,-13840.7156276,0.00013699,2]
[396212470,1764811844388,-279.10748082,0.00013699,2]
[396212471,1764811844399,-302.0,0.00013699,2]
[396212472,1764811844411,-28053.01800284,0.00013699,2]
[396212473,1764811844428,-398.076,0.00013699,2]
[396212474,1764811844439,-16360.97718379,0.00013699,2]
[396212475,1764811844473,-46382.73435712,0.00013699,2]
[396212487,1764811845716,-1521.34113669,0.00013699,2]
[396212489,1764811915204,1000.0,0.00032,120]
[396212490,1764811932095,1000.0,0.0002,30]
[396212491,1764811933496,327.62659051,0.00032876,120]
[396212492,1764811947522,1000.0,0.00032876,120]
[396212493,1764812008240,1000.0,0.00032876,120]
[396212494,1764812016289,500.0,0.00032876,120]
[396212495,1764812032633,500.0,0.00032876,120]
[396212496,1764812035080,641.0,0.00032876,120]
[396212497,1764812056291,2295.0,0.00032876,120]
[396212498,1764812099783,3700.0,0.00032876,120]
[396212499,1764812103294,236.46,0.0003287,120]
[396212500,1764812180953,7000.0,0.00032876,120]
[396212502,1764812314530,1000.0,0.00032876,120]
[396212503,1764812373236,157.4907455,0.00032876,120]
[396212509,1764812528494,30000.0,0.0003287,120]
[396212510,1764812566757,1000.0,0.00032876,120]
[396212511,1764812693959,233.151225,0.00030137,120]
[396212512,1764812814461,5000.0,0.000141,10]
[396212513,1764812822575,5000.0,0.000141,10]
[396212543,1764813032056,-299.32644612,0.00013099,2]
[396212544,1764813032067,-299.32644612,0.00013231,2]
[396212545,1764813032077,-36.87215458,0.00013231,2]
[396212554,1764813037988,-222.12784542,0.00013099,2]
[396212555,1764813038000,-222.12784542,0.00013231,2]
[396212556,1764813038015,-1000.0,0.000135,2]
[396212557,1764813038024,-1000.0,0.000135,3]
[396212558,1764813038034,-150.0,0.000135,2]
[396212559,1764813038043,-15.84331922,0.000136,4]
[396212560,1764813038055,-326.93934112,0.000136,4]
[396212561,1764813038066,-657.21733966,0.000136,4]
[396212562,1764813038075,-612.45701632,0.00013695,2]
[396212564,1764813038151,-587.54298368,0.00013695,2]
[396212565,1764813038160,-1200.0,0.00013696,2]
[396212566,1764813038169,-300.0,0.00013696,2]
[396212567,1764813038179,-300.0,0.00013696,2]
[396212568,1764813038188,-300.0,0.00013696,2]
[396212569,1764813038197,-300.0,0.00013696,2]
[396212570,1764813038207,-14383.59793471,0.00013699,2]
[396212571,1764813038216,-130.0750153,0.00013699,2]
[396212572,1764813038228,-611.7206717,0.00013699,2]
[396212573,1764813038238,-150.0,0.00013754,2]
[396212574,1764813038247,-300.0,0.00013971,2]
[396212575,1764813038257,-300.0,0.00013971,2]
[396212576,1764813038266,-300.0,0.00013971,2]
[396212577,1764813038276,-300.0,0.00013971,2]
[396212578,1764813038285,-300.0,0.00013971,2]
[396212579,1764813038295,-300.0,0.00013971,2]
[396212580,1764813038304,-300.0,0.00013971,2]
[396212581,1764813038313,-300.0,0.00013971,2]
[396212582,1764813038323,-300.0,0.00013971,2]
[396212583,1764813038332,-300.0,0.00013971,2]
[396212584,1764813038341,-300.0,0.00013971,2]
[396212585,1764813038351,-300.0,0.00013971,2]
[396212586,1764813038360,-300.0,0.00013971,2]
[396212587,1764813038369,-300.0,0.00013971,2]
[396212588,1764813038378,-300.0,0.00013971,2]
[396212589,1764813038387,-246.8093283,0.000142,2]
[396212736,1764813041414,-12.1906717,0.000142,2]
[396212738,1764813041423,-600.0,0.00014249,2]
[396212740,1764813041433,-1154.82131846,0.00014755,2]
[396212742,1764813041442,-16612.47197369,0.00014788,2]
[396212848,1764813043173,-31674.85181998,0.00014788,2]
[396212864,1764813136266,500.0,0.00032,120]
[396212865,1764813162658,1000.0,0.00032876,120]
[396212866,1764813166741,1016.0,0.000328,120]
[396212867,1764813182565,500.0,0.000328,120]
[396212870,1764813754158,1000.0,0.00032876,120]
[396212871,1764813974891,700.0,0.00032877,120]
[396212872,1764814026613,504.6775,0.00032877,120]
[396212873,1764814129098,-399.58,0.00011988,2]
[396212874,1764814129122,-399.58,0.00011988,2]
[396212875,1764814157884,63975.92368005,0.00032877,120]
[396212876,1764814183123,2235.88,0.00032877,120]
[396212888,1764814232057,-270.0,0.00014486,2]
[396212890,1764814232066,-150.0,0.00014486,2]
[396212891,1764814232076,-173.42681925,0.00014492,2]
[396212893,1764814232086,-17.33957011,0.00014588,2]
[396212924,1764814238170,-253.36767089,0.00014588,2]
[396212925,1764814238186,-250.62293232,0.00014608,2]
[396212926,1764814238196,-300.0,0.00014682,2]
[396212927,1764814238207,-300.0,0.00014682,2]
[396212928,1764814238219,-120.83205931,0.00014682,2]
[396212930,1764814238231,-540.61021453,0.00014682,2]
[396212932,1764814238243,-538.55772616,0.00014682,2]
[396212934,1764814238253,-500.0,0.00014683,2]
[396212936,1764814238264,-342.86704117,0.00014683,2]
[396212938,1764814238274,-195.76953076,0.00014683,2]
[396212940,1764814238283,-158.51252947,0.00014683,2]
[396212942,1764814238294,-304.23898023,0.00014683,2]
[396212944,1764814238306,-260.22733645,0.00014683,2]
[396212946,1764814238318,-669.61515472,0.00014683,2]
[396212948,1764814238330,-320.0,0.00014683,2]
[396212952,1764814238360,-1057.43089812,0.00014683,2]
[396212956,1764814238383,-687.60696698,0.00014683,2]
[396212957,1764814238393,-169623.1616196,0.00014684,2]
[396212960,1764814238402,-330752.93240953,0.00014688,2]
[396212961,1764814238413,-8246.18349024,0.00014688,2]
[396212964,1764814238424,-3520.04,0.00014688,2]
[396212966,1764814238435,-1181.34538107,0.00014688,2]
[396212968,1764814238445,-504.32018305,0.00014688,2]
[396213003,1764814240120,-4846.53860153,0.00014688,2]
[396213329,1764814243274,-573.17576473,0.00014588,2]
[396213633,1764814345387,1000.0,0.00032876,120]
[396213634,1764814442470,18305.097697,0.00013778,2]
[396213635,1764814465009,173.945,0.00013699,2]
[396213636,1764814467476,1371.2,0.00032877,120]
[396213637,1764814561789,162.0,0.0002,30]
[396213638,1764814609616,492.558734,0.00032876,120]
[396213639,1764814944849,1000.0,0.00032876,120]
[396213715,1764815178258,704.705902,0.00013699,2]
[396213718,1764815234799,196274.07760109,0.00032,120]
[396213740,1764815432223,-269.0,0.0001437,2]
[396213742,1764815432237,-150.0,0.00014424,2]
[396213744,1764815432248,-300.0,0.00014578,2]
[396213746,1764815432271,-300.0,0.00014578,2]
[396213748,1764815432282,-368.05765272,0.00014579,2]
[396213750,1764815432295,-2370.0,0.00014579,2]
[396213786,1764815438528,-745.20190271,0.00014579,2]
[396213787,1764815438585,-4690.11008871,0.00014579,2]
[396213788,1764815438597,-14379.46498603,0.00014579,2]
[396213830,1764815443936,-3225.06159379,0.00014579,2]
[396213831,1764815443945,-1794.50960882,0.00014579,2]
[396213838,1764815446282,-2254.16405576,0.00014579,2]
[396213839,1764815446292,-151.0,0.00014579,2]
[396213840,1764815446301,-151.0,0.00014579,2]
[396213841,1764815446311,-151.0,0.00014579,2]
[396213842,1764815446320,-151.0,0.00014579,2]
[396213843,1764815446329,-151.0,0.00014579,2]
[396213844,1764815446339,-151.0,0.00014579,2]
[396213845,1764815446348,-151.0,0.00014579,2]
[396213846,1764815446357,-151.0,0.00014579,2]
[396213847,1764815446367,-151.0,0.00014579,2]
[396213848,1764815446376,-151.0,0.00014579,2]
[396213849,1764815446385,-151.0,0.00014579,2]
[396213850,1764815446395,-151.0,0.00014579,2]
[396213851,1764815446404,-151.0,0.00014579,2]
[396213852,1764815446413,-151.0,0.00014579,2]
[396213853,1764815446422,-153.42343389,0.00014579,2]
[396213854,1764815446432,-151.0,0.00014579,2]
[396213855,1764815446441,-151.0,0.00014579,2]
[396213856,1764815446450,-151.0,0.00014579,2]
[396213857,1764815446459,-151.0,0.00014579,2]
[396213858,1764815446468,-151.0,0.00014579,2]
[396213859,1764815446477,-151.95861838,0.00014579,2]
[396213860,1764815446486,-349.71215812,0.00014587,2]
[396213861,1764815446495,-487.03867153,0.00014587,2]
[396213862,1764815446504,-14086.20306358,0.00014588,2]
[396213863,1764815462626,250.0,0.0002,30]
[396213864,1764815463214,620.0,0.00032876,120]
[396213865,1764815501769,172.97431386,0.00032,120]
[396213867,1764815548251,1000.0,0.00032876,120]
[396213868,1764815745722,10000.0,0.00032877,120]
[396213869,1764815752281,10000.0,0.00032877,120]
[396213870,1764815835688,2051.58,0.00032877,120]
[396213871,1764815885232,559.27,0.00012008,2]
[396213872,1764815885516,559.27,0.00012008,2]
[396213873,1764815909327,174.863418,0.00030137,120]
[396213875,1764815983179,2316.97225007,0.00032876,120]
[396213876,1764816010154,325.16,0.00032877,120]
[396213877,1764816163041,1000.0,0.00032876,120]
[396213878,1764816364354,199.82758765,0.000328,120]
[396213881,1764816581089,3005.12127001,0.00032876,120]
[396213882,1764816592947,150.0,0.000328,120]
[396213910,1764816632439,-3542.58945649,0.00014387,2]
[396213911,1764816632448,-269.0,0.00014387,2]
[396213912,1764816632458,-300.0,0.00014486,2]
[396213913,1764816632467,-150.0,0.00014486,2]
[396213914,1764816632477,-321.59217119,0.00014487,2]
[396213915,1764816632486,-340.92707007,0.00014487,2]
[396213916,1764816632495,-575.82585101,0.00014487,2]
[396213917,1764816632505,-541.2495716,0.00014487,2]
[396213918,1764816632515,-506.04973819,0.00014487,2]
[396213919,1764816632525,-500.0,0.00014487,2]
[396213920,1764816632534,-500.0,0.00014487,2]
[396213921,1764816632544,-415.4029904,0.00014487,2]
[396213922,1764816632554,-500.0,0.00014487,2]
[396213923,1764816632564,-500.0,0.00014487,2]
[396213924,1764816632573,-500.0,0.00014487,2]
[396213925,1764816632582,-500.0,0.00014487,2]
[396213926,1764816632592,-500.0,0.00014487,2]
[396213927,1764816632601,-6576.68046677,0.00014488,2]
[396213941,1764816638541,-6507.69598706,0.00014488,2]
[396213942,1764816638553,-3291.06443375,0.00014488,2]
[396213943,1764816638586,-6198.9802446,0.00014488,2]
[396213944,1764816638598,-9904.85776516,0.00014488,2]
[396213945,1764816638609,-22562.70210381,0.00014488,2]
[396213946,1764816638620,-21015.40392329,0.00014488,2]
[396213965,1764816640633,-614.8492,0.00014488,2]
[396213967,1764816640644,-1086.86268639,0.00014488,2]
[396213999,1764816644824,-768.90923381,0.00014488,2]
[396214003,1764816646516,-4064.19999931,0.00014488,2]
[396214004,1764816646604,-391.50697925,0.00014488,2]
[396214005,1764816763580,505.60932391,0.00032876,120]
[396214006,1764816788979,237.41073228,0.00014,2]
[396214007,1764816797426,252.981,0.00013699,2]
[396214009,1764816902955,5000.0,0.00014,2]
[396214010,1764816912916,5000.0,0.00014,2]
[396214011,1764816928062,5000.0,0.00014,2]
[396214012,1764816935857,5000.0,0.00014,2]
[396214013,1764816951597,5000.0,0.00014,2]
[396214014,1764816959904,4170.46108137,0.00014,2]
[396214015,1764816961801,888.0,0.00032876,120]
[396214016,1764816975166,5000.0,0.00014,2]
[396214017,1764816997473,1090.21134006,0.00014,2]
[396214018,1764817027705,293.53803932,0.00013814,2]
[396214019,1764817226410,247.8305724,0.00013814,2]
[396214020,1764817262243,-500.0,0.00032877,120]
[396214021,1764817262632,-500.0,0.00032877,120]
[396214022,1764817262651,-1030.44,0.00032877,120]
[396214023,1764817262671,-500.0,0.00032877,120]
[396214024,1764817262816,-500.0,0.0003315,120]
[396214025,1764817262836,-500.0,0.00033151,120]
[396214026,1764817262983,-500.0,0.00033151,120]
[396214027,1764817263003,-2221.56,0.000332,120]
[396214028,1764817359622,1318.74,0.000141,10]
[396214030,1764817684877,260.99,0.00012108,2]
[396214031,1764817685205,260.99,0.00012108,2]
[396214032,1764817685521,260.99,0.00012108,2]
[396214033,1764817831756,-150.0,0.00014306,2]
[396214034,1764817831766,-268.0,0.00014306,2]
[396214035,1764817831776,-368.05765272,0.00014379,2]
[396214036,1764817831786,-3099.76577442,0.00014379,2]
[396214037,1764817831795,-1011.16747172,0.00014379,2]
[396214038,1764817831804,-5013.92174006,0.00014379,2]
[396214039,1764817831815,-200.0,0.00014379,2]
[396214040,1764817831825,-2579.17784983,0.00014379,2]
[396214041,1764817831835,-317.1496011,0.00014379,2]
[396214042,1764817831847,-229.01078302,0.00014379,2]
[396214043,1764817831857,-300.0,0.00014386,2]
[396214044,1764817831867,-300.0,0.00014386,2]
[396214045,1764817831878,-435.04477671,0.00014387,2]
[396214046,1764817831888,-500.0,0.00014387,2]
[396214047,1764817831898,-501.42654181,0.00014387,2]
[396214048,1764817831908,-7541.82937001,0.00014388,2]
[396214067,1764817837736,-238.64894905,0.00014387,2]
[396214068,1764817837746,-225.11451984,0.00014387,2]
[396214069,1764817837756,-3940.77984281,0.00014388,2]
[396214070,1764817837768,-14792.26899724,0.00014388,2]
[396214071,1764817837779,-3484.07439681,0.00014388,2]
[396214072,1764817837897,-4114.16,0.00014388,2]
[396214073,1764817837909,-23322.64253795,0.00014388,2]
[396214074,1764817837991,-499.8293337,0.00014388,2]
[396214089,1764817839808,-638.28760936,0.00014388,2]
[396214091,1764817839820,-1242.57155899,0.00014388,2]
[396214092,1764817839863,-8015.87471478,0.00014388,2]
[396214093,1764817839874,-1525.57541363,0.00014388,2]
[396214094,1764817839885,-594.4003059,0.00014388,2]
[396214095,1764817839895,-25416.18009161,0.00014388,2]
[396214096,1764817839918,-1595.8,0.00014388,2]
[396214108,1764817842868,-8544.43203038,0.00014388,2]
[396214109,1764817842879,-5533.5400021,0.00014388,2]
[396214110,1764817843027,-9640.72214699,0.00014388,2]
[396214113,1764817845835,-104019.81671291,0.00014388,2]
[396214114,1764817851988,720.129482,0.00013699,2]
[396214118,1764817977576,153.459911,0.0003287,120]
[396214119,1764818026275,250.0,0.00032877,120]
[396214120,1764818036774,96.540089,0.00032877,120]
[396214121,1764818046623,250.0,0.00032877,120]
[396214122,1764818057378,250.0,0.00032877,120]
[396214123,1764818068464,250.0,0.00032877,120]
[396214124,1764818077802,250.0,0.00032877,120]
[396214125,1764818087135,250.0,0.00032877,120]
[396214126,1764818091699,1001.34231312,0.000328,120]
[396214127,1764818092217,298.1,0.00032876,120]
[396214128,1764818097301,250.0,0.00032877,120]
[396214129,1764818281235,250.0,0.00032876,120]
[396214130,1764818606326,1560.56,0.00014,2]
[396214131,1764818878712,169.07566373,0.0001475,19]
[396214132,1764818878743,476.66265278,0.0001475,19]
[396214133,1764818892802,190.64055,0.00032877,120]
[396214165,1764819031778,-300.0,0.00014187,2]
[396214166,1764819031788,-267.0,0.00014187,2]
[396214167,1764819031799,-49177.80684192,0.00014188,2]
[396214171,1764819037988,-211.33572624,0.00014187,2]
[396214172,1764819038000,-167.05426433,0.00014187,2]
[396214173,1764819038009,-500.0,0.00014187,2]
[396214174,1764819038018,-500.0,0.00014187,2]
[396214175,1764819038028,-483.29766791,0.00014187,2]
[396214176,1764819038037,-8772.58358839,0.00014188,2]
[396214269,1764819049737,-272.5836251,0.0001515,20]
[396214270,1764819237242,2787.9570632,0.00014,2]
[396214271,1764819306024,2000.0,0.0002,30]
[396214272,1764819483605,182.69,0.00012008,2]
[396214273,1764819483698,182.69,0.00012008,2]
[396214274,1764819483976,182.69,0.00012008,2]
[396214275,1764819613475,174.863418,0.00030137,120]
[396214276,1764819842834,155.84600498,0.00013855,2]
[396214300,1764820231904,-300.0,0.00014087,2]
[396214302,1764820231914,-266.0,0.00014087,2]
[396214304,1764820231924,-150.0,0.00014087,2]
[396214306,1764820231933,-2749.43,0.00014088,2]
[396214309,1764820231957,-639.83264424,0.00014088,2]
[396214326,1764820238151,-1981.3706724,0.00014088,2]
[396214530,1764820243253,-471.28279179,0.00014088,2]
[396214534,1764820246019,-604.017359,0.00014088,2]
[396214535,1764820246030,-34060.52336846,0.00014088,2]
[396214538,1764820588404,234.31787127,0.00032877,120]
[396214539,1764820603353,234.31787127,0.00032877,120]
[396214540,1764820641399,590.0652,0.00032876,120]
[396214541,1764820692517,500.0,0.00032876,120]
[396214542,1764820716519,1102.155,0.00032877,120]
[396214556,1764820996931,86050.58608539,0.00013988,2]
[396214557,1764821005240,159.95,0.000328,120]
[396214559,1764821425090,366.0,0.0003287,120]
[396214582,1764821432105,-191.83,0.00011988,2]
[396214584,1764821432115,-191.83,0.00011988,2]
[396214585,1764821432124,-248.0,0.00011988,2]
[396214587,1764821432133,-150.0,0.00012967,2]
[396214588,1764821432142,-684.123007,0.00013699,2]
[396214589,1764821432152,-5013.92174006,0.0001398,2]
[396214590,1764821432161,-200.0,0.0001398,2]
[396214591,1764821432171,-250.0,0.0001398,2]
[396214592,1764821432180,-250.0,0.0001398,2]